Body Name,Body,Service Level,Expense Type,Expense Code,Narrative,Date,Transaction Number,Amount,Capital and Revenue,Supplier Name,Supplier ID
South Ribble Council,http://statistics.data.gov.uk/doc/local-authority/30UN,Area 3 - Parks/Leyland East West,Capital Expenditure,C230,Installation of depiction of Medieval Cross at Balcarres Green,02/10/2020,0000458749,"3,875.00",Revenue,Acorn Landscape Gardening,133050
South Ribble Council,http://statistics.data.gov.uk/doc/local-authority/30UN,Area 3 - Parks/Leyland East West,Capital Expenditure,C230,Installation of depiction of Medieval Cross at Balcarres Green,02/10/2020,0000459245,"3,875.00",Revenue,Acorn Landscape Gardening,133050
South Ribble Council,http://statistics.data.gov.uk/doc/local-authority/30UN,Scrutiny,Subs to Statutory Bodies,4720,SRBC MEMBERSHIP SUBSCRIPTION RENEWAL FOR 2020-2021,16/10/2020,0000459292,"1,500.00",Revenue,ACTIVE LANCASHIRE,00120003
South Ribble Council,http://statistics.data.gov.uk/doc/local-authority/30UN,Area 2 - Waste Transport/Eastern & Central Teams,Materials General,4040,1x set of bolts and bushes AE14AYG JFC15289,02/10/2020,0000459255,547.75,Revenue,AEBI SCHMIDT UK LTD,00085672
South Ribble Council,http://statistics.data.gov.uk/doc/local-authority/30UN,Regeneration,Capital Expenditure,C230,Please carry out works as per NAME REDACTED instructions final purchase order for Shruggs wood. Description : Final invoice Shruggs wood,21/10/2020,0000459546,"23,243.00",Revenue,ALBEN LANDSCAPES,00105921
South Ribble Council,http://statistics.data.gov.uk/doc/local-authority/30UN,Housing,Cap Grant- Improve Grants,C570,DFG WORK TO COMPLETE DFG WORKS AS PER SRBC PLANS AND SPECIFICATION AT ADDRESS REDACTED PER QUOTE 4240.20,16/10/2020,0000459557,"4,240.20",Revenue,Allmech Plumbing And Heating Ltd,133161
South Ribble Council,http://statistics.data.gov.uk/doc/local-authority/30UN,Revenues Plus,Financial,4811,post office,07/10/2020,0000459315,627.06,Revenue,ALLPAY LTD,00122276
South Ribble Council,http://statistics.data.gov.uk/doc/local-authority/30UN,Revenues Plus,Financial,4811,paypoint,07/10/2020,0000459315,76.40,Revenue,ALLPAY LTD,00122276
South Ribble Council,http://statistics.data.gov.uk/doc/local-authority/30UN,Revenues Plus,Financial,4811,webconnect,07/10/2020,0000459315,46.00,Revenue,ALLPAY LTD,00122276
South Ribble Council,http://statistics.data.gov.uk/doc/local-authority/30UN,Property Services,Rep & Maint Premises,2020,Please provide Asbestos Management Plans for the Council in the formats discussed as per quotation 29th June 2020 Our Ref: CH/20/6/516/PK,07/10/2020,0000459274,485.00,Revenue,APEC Environmental Ltd,132327
South Ribble Council,http://statistics.data.gov.uk/doc/local-authority/30UN,Area 2 - Waste Transport/Eastern & Central Teams,Advertising,4842,Hire of D2TL Luton van with Tail Lift 14.9.20 - 12.10.20 = 746.75 Delivery & Collection 4.00 each Road fund licence 49.30 Total Cost 804.05,23/10/2020,0000459575,408.40,Revenue,ARNOLD CLARK CAR & VAN RENTAL,00102364
South Ribble Council,http://statistics.data.gov.uk/doc/local-authority/30UN,Area 2 - Waste Transport/Eastern & Central Teams,Advertising,4842,"50,000 Bin stickers as per quote ref.155715 dated 04/08/2020.",02/10/2020,0000458510,"2,111.00",Revenue,B & D PRINT SERVICES LTD,00015134
South Ribble Council,http://statistics.data.gov.uk/doc/local-authority/30UN,Area 2 - Waste Transport/Eastern & Central Teams,Materials General,4040,1 x belt TMF05TR JFC15324,09/10/2020,0000459271,389.50,Revenue,BALMERS GM LTD,00016023
South Ribble Council,http://statistics.data.gov.uk/doc/local-authority/30UN,Housing,Cap Grant- Improve Grants,C570,DFG WORK TO SUPPLY AND INSTALL A BOILER AND ASSOCIATED WORKS  AS PER QUOTE SUPPLIED OF 1324.80  1324.80,14/10/2020,0000459392,"1,104.00",Revenue,Bartons of Duke Street Ltd,132663
South Ribble Council,http://statistics.data.gov.uk/doc/local-authority/30UN,Property Services,Rep & Maint Premises,2020,Please carry out works as per NAME REDACTED CAB�s office on the 2nd Floor two electrical sockets which don�t work + two additional sockets.,07/10/2020,0000459242,447.90,Revenue,BELEC ELECTRICAL LTD,130290
South Ribble Council,http://statistics.data.gov.uk/doc/local-authority/30UN,Property Services,Rep & Maint Premises,2020,"as per NAME REDACTED request a the Bowling Club, Leyland Improve electrical accessories to meet IEE Regs add RCD protection",14/10/2020,0000459501,934.00,Revenue,BELEC ELECTRICAL LTD,130290
South Ribble Council,http://statistics.data.gov.uk/doc/local-authority/30UN,Property Services,Rep & Maint Premises,2020,Please carry out works as per NAME REDACTED Replacement of dist board at ADDRESS REDACTED and isolators and breakers,14/10/2020,0000459503,735.00,Revenue,BELEC ELECTRICAL LTD,130290
South Ribble Council,http://statistics.data.gov.uk/doc/local-authority/30UN,Property Services,Rep & Maint Premises,2020,Provide sufficient lighting over fire escape and egress route at the Depot as this is the Exit route for Moss Side Depot as per NAMES REDACTED,23/10/2020,0000459602,353.00,Revenue,BELEC ELECTRICAL LTD,130290
South Ribble Council,http://statistics.data.gov.uk/doc/local-authority/30UN,Area 3 - Parks/Leyland East West,External Contractors Charges,4570,"URGENT WORKS TO THE UNSAFE MEMORIALS WITHIN THE CLOSED GRAVE YARD AT ST MARY`S CHURCH, PENWORTHAM",02/10/2020,0000459267,"3,000.00",Revenue,C B Price & Son Ltd,133017
South Ribble Council,http://statistics.data.gov.uk/doc/local-authority/30UN,Planning,Agency Fees,1121,Remote validation support for Development Management,09/10/2020,0000459237,899.91,Revenue,CAPITA PROPERTY AND INFRASTRUCTURE LTD,131347
South Ribble Council,http://statistics.data.gov.uk/doc/local-authority/30UN,Environmental Health,Licence Fees,488B,mgmt fee oct to dec,21/10/2020,0000459511,"1,125.00",Revenue,Carr Street Community Centre,130312
South Ribble Council,http://statistics.data.gov.uk/doc/local-authority/30UN,Regeneration,Contributions,4730,Grant to deliver Dial A Ride Services in south ribble as per grant agreement 2020-2021,16/10/2020,0000459570,"5,000.00",Revenue,Central Lancashire Dial A Ride,133180
South Ribble Council,http://statistics.data.gov.uk/doc/local-authority/30UN,Information Services,Peripherals,4248,"ICON - Annual Hosting Fee - Yr3 (01/10/20 - 30/09/21) 22,249.00 and Transaction Uplift (01/10/2020 - 30/09/2021) 4,050.00, ref ICO1911SOU-A",07/10/2020,0000459199,"26,299.00",Revenue,CIVICA UK LTD,00102717
South Ribble Council,http://statistics.data.gov.uk/doc/local-authority/30UN,Information Services,Peripherals,4248,Additional annual charge to SRBC for exceeding Data Storage & Recovery quota for period 01/10/20 - 30/09/21,21/10/2020,0000459573,"2,285.72",Revenue,CIVICA UK LTD,00102717
South Ribble Council,http://statistics.data.gov.uk/doc/local-authority/30UN,Information Services,Peripherals,4241,5 Laptops @ 469.00 each,14/10/2020,0000459514,"2,345.00",Revenue,CPC Re: COMBINED PRECISION COMPONENTS PLC,00017954
South Ribble Council,http://statistics.data.gov.uk/doc/local-authority/30UN,Revenues Plus,Postage,4291,Postage April to Sept 2020,09/10/2020,0000459347,514.07,Revenue,CRITIQOM,131053
South Ribble Council,http://statistics.data.gov.uk/doc/local-authority/30UN,Revenues Plus,Postage,4291,Postage October to March 2021,21/10/2020,0000459525,526.27,Revenue,CRITIQOM,131053
South Ribble Council,http://statistics.data.gov.uk/doc/local-authority/30UN,Revenues Plus,Professional Fees,4510,Printing and posting out of letters for Pickerings Farm Masterplan,21/10/2020,0000459578,"2,166.90",Revenue,CRITIQOM,131053
South Ribble Council,http://statistics.data.gov.uk/doc/local-authority/30UN,Legal,Legal,4821,PROFESSIONAL SERVICES IN RELATION TO AN EMPLOYMENT TRIBUNAL MATTER,09/10/2020,0000459374,"3,515.60",Revenue,DAC BEACHCROFT LLP,131193
South Ribble Council,http://statistics.data.gov.uk/doc/local-authority/30UN,Area 2 - Waste Transport/Eastern & Central Teams,Materials General,4040,2 x carriage cylinders JFC14808,14/10/2020,0000458909,"1,331.82",Revenue,DENNIS EAGLE LTD,00019774
South Ribble Council,http://statistics.data.gov.uk/doc/local-authority/30UN,Area 2 - Waste Transport/Eastern & Central Teams,Materials General,4040,"1X WATER PUMP, VO65 KRF, JFC15353 (NAME REDACTED)",02/10/2020,0000458982,465.23,Revenue,DENNIS EAGLE LTD,00019774
South Ribble Council,http://statistics.data.gov.uk/doc/local-authority/30UN,Area 2 - Waste Transport/Eastern & Central Teams,Materials General,4040,1 x air cooler 1 x pipe VO65KPX JFC15475,21/10/2020,0000459496,680.42,Revenue,DENNIS EAGLE LTD,00019774
South Ribble Council,http://statistics.data.gov.uk/doc/local-authority/30UN,Area 2 - Waste Transport/Eastern & Central Teams,Materials General,4040,1 x water pump 1 x gasket  1 x oring 1 x hose VO65KRE JFC15530,23/10/2020,0000459584,540.79,Revenue,DENNIS EAGLE LTD,00019774
South Ribble Council,http://statistics.data.gov.uk/doc/local-authority/30UN,Neighbourhood Admin & Support,Clothing- Uniforms & Laundry,4410,Breatheflex Pro Type C Trouser L/Long - TSAT4070L/L,09/10/2020,0000458780,263.50,Revenue,DICK LEIGH,00026534
South Ribble Council,http://statistics.data.gov.uk/doc/local-authority/30UN,Neighbourhood Admin & Support,Clothing- Uniforms & Laundry,4410,Scafell Lite (Lime) Boots Class 2 Size 9 - TS33000-43,09/10/2020,0000458780,192.75,Revenue,DICK LEIGH,00026534
South Ribble Council,http://statistics.data.gov.uk/doc/local-authority/30UN,Neighbourhood Admin & Support,Clothing- Uniforms & Laundry,4410,DMM small Axis swivel - TSSW100,09/10/2020,0000458780,53.54,Revenue,DICK LEIGH,00026534
South Ribble Council,http://statistics.data.gov.uk/doc/local-authority/30UN,Neighbourhood Admin & Support,Clothing- Uniforms & Laundry,4410,3m Flipline + Swivel Snap Marlow wire cored orange - TSGAT024,09/10/2020,0000458780,72.49,Revenue,DICK LEIGH,00026534
South Ribble Council,http://statistics.data.gov.uk/doc/local-authority/30UN,Neighbourhood Admin & Support,Clothing- Uniforms & Laundry,4410,Ultra O oval keylock 3 way alloy krab - TSA327,09/10/2020,0000458780,50.97,Revenue,DICK LEIGH,00026534
South Ribble Council,http://statistics.data.gov.uk/doc/local-authority/30UN,Neighbourhood Admin & Support,Clothing- Uniforms & Laundry,4410,8mm Eye 2 Eye 76cm long Ocean Polyester - TSTEU030/8 76,09/10/2020,0000458780,17.95,Revenue,DICK LEIGH,00026534
South Ribble Council,http://statistics.data.gov.uk/doc/local-authority/30UN,Neighbourhood Admin & Support,Clothing- Uniforms & Laundry,4410,Petz1Open Ring Multi - Directional Gated - LYP28,09/10/2020,0000458780,14.50,Revenue,DICK LEIGH,00026534
South Ribble Council,http://statistics.data.gov.uk/doc/local-authority/30UN,Neighbourhood Admin & Support,Clothing- Uniforms & Laundry,4410,Transparent Combination Canister - ST00008810123,09/10/2020,0000458780,25.50,Revenue,DICK LEIGH,00026534
South Ribble Council,http://statistics.data.gov.uk/doc/local-authority/30UN,Neighbourhood Admin & Support,Operational Furniture & Equip,4010,CHAINSAW CHAIN (20``) - ST36210030072,09/10/2020,0000459349,106.02,Revenue,DICK LEIGH,00026534
South Ribble Council,http://statistics.data.gov.uk/doc/local-authority/30UN,Neighbourhood Admin & Support,Operational Furniture & Equip,4010,CHAINSAW CHAIN (25� CHAIN),09/10/2020,0000459349,94.01,Revenue,DICK LEIGH,00026534
South Ribble Council,http://statistics.data.gov.uk/doc/local-authority/30UN,Neighbourhood Admin & Support,Operational Furniture & Equip,4010,CHAINSAW CHAIN 16`` - ST36390030067,09/10/2020,0000459349,112.56,Revenue,DICK LEIGH,00026534
South Ribble Council,http://statistics.data.gov.uk/doc/local-authority/30UN,Area 3 - Parks/Leyland East West,Clothing- Uniforms & Laundry,4410,1 pr Class A Chainsaw Trousers 1 pr Chainsaw Boots (non-climbing),14/10/2020,0000459418,255.79,Revenue,DICK LEIGH,00026534
South Ribble Council,http://statistics.data.gov.uk/doc/local-authority/30UN,Regeneration,Other Misc,4851,"Early morning Rigging services, Uplighting of areas around the Lodge / Arch way, to celebrate The 75th Anniversary of VJ Day,  Sat 15th Aug 2020.",07/10/2020,0000459298,"1,160.00",Revenue,Dramatic Moves Ltd,132633
South Ribble Council,http://statistics.data.gov.uk/doc/local-authority/30UN,Regeneration,Other Misc,4851,Lighting for the South Ribble Community Awards on 24th January 2020,07/10/2020,0000459302,440.00,Revenue,Dramatic Moves Ltd,132633
South Ribble Council,http://statistics.data.gov.uk/doc/local-authority/30UN,Regeneration,Operational Furniture & Equip,4010,Provision of lighting at Worden Arch � Black Lives Matter June 2020,07/10/2020,0000459303,950.00,Revenue,Dramatic Moves Ltd,132633
South Ribble Council,http://statistics.data.gov.uk/doc/local-authority/30UN,Property Services,Rep & Maint Premises,2020,"Annual Contract for the maintenance of the Lift  2020/2021 at Civic Centre, West Paddock, Leyland",23/10/2020,0000459610,447.50,Revenue,E A Foulds Limited,131427
South Ribble Council,http://statistics.data.gov.uk/doc/local-authority/30UN,Area 3 - Parks/Leyland East West,Grounds Maint Cntrctrs Chgs,4657,1x Evergreen Seat (311) finished in grey/silver RAL 9006,23/10/2020,0000459493,596.00,Revenue,EARTH ANCHORS LTD,00020925
South Ribble Council,http://statistics.data.gov.uk/doc/local-authority/30UN,Area 3 - Parks/Leyland East West,Grounds Maint Cntrctrs Chgs,4657,2x Forest Saver Seats (321) finished in green RAL 6005 @ 349.00 each,23/10/2020,0000459493,698.00,Revenue,EARTH ANCHORS LTD,00020925
South Ribble Council,http://statistics.data.gov.uk/doc/local-authority/30UN,Area 3 - Parks/Leyland East West,Grounds Maint Cntrctrs Chgs,4657,Delivery,23/10/2020,0000459493,98.00,Revenue,EARTH ANCHORS LTD,00020925
South Ribble Council,http://statistics.data.gov.uk/doc/local-authority/30UN,Information Services,Peripherals,4260,1 oct 2020,14/10/2020,0000459404,"4,209.95",Revenue,EE Ltd,131653
South Ribble Council,http://statistics.data.gov.uk/doc/local-authority/30UN,Area 2 - Waste Transport/Eastern & Central Teams,Materials General,4040,1 x steering box VU11HSZ JFC15360,02/10/2020,0000458925,450.00,Revenue,Euro Municipals Ltd,132810
South Ribble Council,http://statistics.data.gov.uk/doc/local-authority/30UN,Area 2 - Waste Transport/Eastern & Central Teams,Materials General,4040,1 hydraulic tank PO16 HNA JFC15062,02/10/2020,0000458893,448.17,Revenue,F R SHARROCK LTD,00034539
South Ribble Council,http://statistics.data.gov.uk/doc/local-authority/30UN,Area 2 - Waste Transport/Eastern & Central Teams,Materials General,4040,4 REAR ROLLERS BIN 1268,02/10/2020,0000458906,327.92,Revenue,F R SHARROCK LTD,00034539
South Ribble Council,http://statistics.data.gov.uk/doc/local-authority/30UN,Area 2 - Waste Transport/Eastern & Central Teams,Materials General,4040,1 CYLINDER LIFT ARM PO16 HMY JFC15406,02/10/2020,0000459233,347.51,Revenue,F R SHARROCK LTD,00034539
South Ribble Council,http://statistics.data.gov.uk/doc/local-authority/30UN,Area 2 - Waste Transport/Eastern & Central Teams,External Contractors Charges,4570,"Hydraulic motor, throttle cable plus labour PO16HMZ JFC15423",09/10/2020,0000459264,615.83,Revenue,F R SHARROCK LTD,00034539
South Ribble Council,http://statistics.data.gov.uk/doc/local-authority/30UN,Area 2 - Waste Transport/Eastern & Central Teams,External Contractors Charges,4570,Residual Waste Collections September 2020,23/10/2020,0000459435,"45,357.97",Revenue,FCC Environment Services (UK) Ltd,131612
South Ribble Council,http://statistics.data.gov.uk/doc/local-authority/30UN,Area 2 - Waste Transport/Eastern & Central Teams,External Contractors Charges,4570,Dry Recyclable Non terraced September 2020,23/10/2020,0000459435,"46,434.12",Revenue,FCC Environment Services (UK) Ltd,131612
South Ribble Council,http://statistics.data.gov.uk/doc/local-authority/30UN,Area 2 - Waste Transport/Eastern & Central Teams,External Contractors Charges,4570,Dry recyclable terraced September 2020,23/10/2020,0000459435,"2,210.11",Revenue,FCC Environment Services (UK) Ltd,131612
South Ribble Council,http://statistics.data.gov.uk/doc/local-authority/30UN,Area 2 - Waste Transport/Eastern & Central Teams,External Contractors Charges,4570,Organic Waste non-terraced September 2020,23/10/2020,0000459435,"32,150.89",Revenue,FCC Environment Services (UK) Ltd,131612
South Ribble Council,http://statistics.data.gov.uk/doc/local-authority/30UN,Area 2 - Waste Transport/Eastern & Central Teams,External Contractors Charges,4570,Schedule 2 properties September 2020,23/10/2020,0000459435,"1,848.87",Revenue,FCC Environment Services (UK) Ltd,131612
South Ribble Council,http://statistics.data.gov.uk/doc/local-authority/30UN,Area 2 - Waste Transport/Eastern & Central Teams,External Contractors Charges,4570,Commercial Waste collections September 2020,23/10/2020,0000459435,"7,199.29",Revenue,FCC Environment Services (UK) Ltd,131612
South Ribble Council,http://statistics.data.gov.uk/doc/local-authority/30UN,Area 2 - Waste Transport/Eastern & Central Teams,External Contractors Charges,4570,Bulky Waste Collections September 2020,23/10/2020,0000459435,999.06,Revenue,FCC Environment Services (UK) Ltd,131612
South Ribble Council,http://statistics.data.gov.uk/doc/local-authority/30UN,Area 2 - Waste Transport/Eastern & Central Teams,External Contractors Charges,4570,WEEE Collections September 2020,23/10/2020,0000459435,375.27,Revenue,FCC Environment Services (UK) Ltd,131612
South Ribble Council,http://statistics.data.gov.uk/doc/local-authority/30UN,Area 2 - Waste Transport/Eastern & Central Teams,External Contractors Charges,4570,Clinical Waste Collections September 2020,23/10/2020,0000459435,639.30,Revenue,FCC Environment Services (UK) Ltd,131612
South Ribble Council,http://statistics.data.gov.uk/doc/local-authority/30UN,Area 2 - Waste Transport/Eastern & Central Teams,External Contractors Charges,4570,Replacement bins September 2020,23/10/2020,0000459435,"5,000.00",Revenue,FCC Environment Services (UK) Ltd,131612
South Ribble Council,http://statistics.data.gov.uk/doc/local-authority/30UN,Area 2 - Waste Transport/Eastern & Central Teams,External Contractors Charges,4570,Additional Properties September 2020,23/10/2020,0000459435,"3,984.00",Revenue,FCC Environment Services (UK) Ltd,131612
South Ribble Council,http://statistics.data.gov.uk/doc/local-authority/30UN,Area 2 - Waste Transport/Eastern & Central Teams,Balance Sheet,0030,retention,23/10/2020,0000459435,"-4,039.76",Revenue,FCC Environment Services (UK) Ltd,131612
South Ribble Council,http://statistics.data.gov.uk/doc/local-authority/30UN,Area 2 - Waste Transport/Eastern & Central Teams,Balance Sheet,0030,retention,23/10/2020,0000459435,"-3,020.19",Revenue,FCC Environment Services (UK) Ltd,131612
South Ribble Council,http://statistics.data.gov.uk/doc/local-authority/30UN,Area 2 - Waste Transport/Eastern & Central Teams,External Contractors Charges,4570,Additional Clinical Waste Collections September 2020,23/10/2020,0000459532,310.96,Revenue,FCC Environment Services (UK) Ltd,131612
South Ribble Council,http://statistics.data.gov.uk/doc/local-authority/30UN,Area 2 - Waste Transport/Eastern & Central Teams,Balance Sheet,0030,retention,23/10/2020,0000459532,-15.55,Revenue,FCC Environment Services (UK) Ltd,131612
South Ribble Council,http://statistics.data.gov.uk/doc/local-authority/30UN,Healthy Communities,Consultancy Fees,4541,Please supply as per NAME REDACTED Leisure Management contract consultancy work August 2020 fees as per proposal.,21/10/2020,0000459492,"5,500.00",Revenue,FMG Consulting Ltd,133044
South Ribble Council,http://statistics.data.gov.uk/doc/local-authority/30UN,Planning,Operational Furniture & Equip,4010,Paper for large plotter printers 5 x rolls - 841 x 110mm 8 x rolls - 594 x 110mm,09/10/2020,0000458979,269.30,Revenue,GCS UK ASSOCIATES LTD,130671
South Ribble Council,http://statistics.data.gov.uk/doc/local-authority/30UN,Environmental Health,Licence Fees,488B,fee oct to dec,21/10/2020,0000459513,"1,000.00",Revenue,HIGHER WALTON COMMUNITY CENTRE,00070535
South Ribble Council,http://statistics.data.gov.uk/doc/local-authority/30UN,Shared Financial Services,Balance Sheet,0140,,14/10/2020,0000458859,"1,300.00",Revenue,HM REVENUE & CUSTOMS,00024837
South Ribble Council,http://statistics.data.gov.uk/doc/local-authority/30UN,Area 2 - Waste Transport/Eastern & Central Teams,Materials General,4040,5mm Hardox plate 3m x 1.5m BIN 900,16/10/2020,0000459527,543.75,Revenue,Holdens CVE Limited,132119
South Ribble Council,http://statistics.data.gov.uk/doc/local-authority/30UN,Area 2 - Waste Transport/Eastern & Central Teams,Materials General,4040,5mm steel plate. 2.5m x 1.25m BIN 449,16/10/2020,0000459527,160.00,Revenue,Holdens CVE Limited,132119
South Ribble Council,http://statistics.data.gov.uk/doc/local-authority/30UN,Property Services,Rep & Maint Premises,2020,Please undertake works to the flooring in the corridor and entrance to Unit 17D Boxer Place as detailed in your quotation ref JD/399,07/10/2020,0000459263,513.00,Revenue,HYDE FLOORING CO LTD,00023605
South Ribble Council,http://statistics.data.gov.uk/doc/local-authority/30UN,Democratic Services,Other Misc,4970,IDOX 2020 CANVASS OPTIONS - AUTOMATED RESPONSE SERVICES,02/10/2020,0000459231,"2,972.91",Revenue,IDOX PLC,00104485
South Ribble Council,http://statistics.data.gov.uk/doc/local-authority/30UN,Neighbourhood Admin & Support,Materials General,4040,QC10 - QUICK SET CONCRETE,14/10/2020,0000459387,"1,228.64",Revenue,INSTARMAC GROUP PLC,00024905
South Ribble Council,http://statistics.data.gov.uk/doc/local-authority/30UN,Property Services,Rep & Maint Premises,2020,Works as per NAME REDACTED instruction - fix the immersion tank boiler in the service shaft on the ground floor next to the caretakers office.,14/10/2020,0000459490,350.00,Revenue,J Whittle plumbing & heating,132695
South Ribble Council,http://statistics.data.gov.uk/doc/local-authority/30UN,Planning,Other Misc,485R,refund,09/10/2020,0000459205,"4,183.00",Revenue,James Hall and Company Limited,133196
South Ribble Council,http://statistics.data.gov.uk/doc/local-authority/30UN,Planning,Other Misc,485R,refund duplicate planning fees re 07/2020/00768/FUL rec ref 000110006444,21/10/2020,0000459380,"4,183.00",Revenue,James Hall and Company Limited,133196
South Ribble Council,http://statistics.data.gov.uk/doc/local-authority/30UN,Property Services,Rep & Maint Premises,2020,"Annual Contract for the maintenance of the Trend BMS HVAC 4 x day visits (TBA)  June, Sept, Dec, March  per quote C572 - R200 4th Apr 2020",14/10/2020,0000459489,424.00,Revenue,JBC CONTROL SYSTEM,130816
South Ribble Council,http://statistics.data.gov.uk/doc/local-authority/30UN,Area 2 - Waste Transport/Eastern & Central Teams,Materials General,4040,"1x water filter assembly, 1 channel brush overhaul kit, RV14 DTZ, JFC15318 (NAME REDACTED)",02/10/2020,0000459214,344.87,Revenue,JOHNSTON SWEEPERS LTD,00058926
South Ribble Council,http://statistics.data.gov.uk/doc/local-authority/30UN,Area 2 - Waste Transport/Eastern & Central Teams,Materials General,4040,"2x castor wheels, GX19 DZF, JFC15378",02/10/2020,0000459214,96.38,Revenue,JOHNSTON SWEEPERS LTD,00058926
South Ribble Council,http://statistics.data.gov.uk/doc/local-authority/30UN,Area 1 - Penwortham Western Parishes,Other Misc,4851,Lancashire Evening Post and Preston Today advertising package for public notices.,02/10/2020,0000458923,702.00,Revenue,JPI Media - JOHNSTON PUBLISHING (NORTH WEST),00011345
South Ribble Council,http://statistics.data.gov.uk/doc/local-authority/30UN,Planning,Advertising,4841,Press notices in the Lancashire Evening Post for Planning Applications July 2020 to March 2021,09/10/2020,0000459229,702.00,Revenue,JPI Media - JOHNSTON PUBLISHING (NORTH WEST),00011345
South Ribble Council,http://statistics.data.gov.uk/doc/local-authority/30UN,Planning,Advertising,4841,Press notices in the Lancashire Evening Post for Planning Applications July 2020 to March 2021,09/10/2020,0000459275,810.00,Revenue,JPI Media - JOHNSTON PUBLISHING (NORTH WEST),00011345
South Ribble Council,http://statistics.data.gov.uk/doc/local-authority/30UN,Planning,Advertising,4841,Press notices in the Lancashire Evening Post for Planning Applications July 2020 to March 2021,16/10/2020,0000459488,972.00,Revenue,JPI Media - JOHNSTON PUBLISHING (NORTH WEST),00011345
South Ribble Council,http://statistics.data.gov.uk/doc/local-authority/30UN,Area 3 - Parks/Leyland East West,Contract Hire & Lease Costs,3212,3 ton excavator hired for 1 week delivered to Worden Park - W/C 17.08.2020,23/10/2020,0000459388,426.00,Revenue,K H HIRE SERVICES,00012933
South Ribble Council,http://statistics.data.gov.uk/doc/local-authority/30UN,Property Services,Other Misc,4851,cancelled by credit,14/10/2020,0000458998,495.00,Revenue,Kingswood Office Supplies,133083
South Ribble Council,http://statistics.data.gov.uk/doc/local-authority/30UN,Property Services,Other Misc,4851,Please supply 9 boxes of 50 masks as per NAME REDACTED for COVID 19,14/10/2020,0000459539,495.00,Revenue,Kingswood Office Supplies,133083
South Ribble Council,http://statistics.data.gov.uk/doc/local-authority/30UN,Healthy Communities,Consultancy Fees,4541,FAO of NAME REDACTED Collection of data to prepare report of Pension Authority information required by South Ribble Community Leisure,09/10/2020,0000458942,552.81,Revenue,LANCASHIRE COUNTY COUNCIL PENSION FUND,130639
South Ribble Council,http://statistics.data.gov.uk/doc/local-authority/30UN,HR & Communications,Other Local Authorities,4531,PAYROLL SERVICES - APRIL - JUNE 2020,02/10/2020,0000459213,"5,750.00",Revenue,LANCS COUNTY COUNCIL,00041645
South Ribble Council,http://statistics.data.gov.uk/doc/local-authority/30UN,HR & Communications,Other Local Authorities,4531,PAYROLL SERVICES - JULY - SEPTEMBER 2020,02/10/2020,0000459213,"5,750.00",Revenue,LANCS COUNTY COUNCIL,00041645
South Ribble Council,http://statistics.data.gov.uk/doc/local-authority/30UN,HR & Communications,Other Local Authorities,4531,PAYROLL SERVICES - OCTOBER - DECEMBER 2020,02/10/2020,0000459213,"5,750.00",Revenue,LANCS COUNTY COUNCIL,00041645
South Ribble Council,http://statistics.data.gov.uk/doc/local-authority/30UN,HR & Communications,Other Local Authorities,4531,PAYROLL SERVICES - JANUARY - MARCH 2021,02/10/2020,0000459213,"5,750.00",Revenue,LANCS COUNTY COUNCIL,00041645
South Ribble Council,http://statistics.data.gov.uk/doc/local-authority/30UN,Legal,Other Local Authorities,4530,LAND CHARGES - AUGUST 2020,02/10/2020,0000459254,"1,189.50",Revenue,LANCS COUNTY COUNCIL,00041645
South Ribble Council,http://statistics.data.gov.uk/doc/local-authority/30UN,Planning,Professional Fees,4510,Service level agreement for Archaeology for 2019 - 2020 (Year 2),14/10/2020,0000459485,"1,928.00",Revenue,LANCS COUNTY COUNCIL,00041645
South Ribble Council,http://statistics.data.gov.uk/doc/local-authority/30UN,Area 2 - Waste Transport/Eastern & Central Teams,Materials General,4040,1 headlight YA19 NGN JFC15408,02/10/2020,0000459253,293.00,Revenue,LANCS DAF,00026424
South Ribble Council,http://statistics.data.gov.uk/doc/local-authority/30UN,Regeneration,Professional Fees,4510,Please carry out works as per NAME REDACTED request amount:  250 work:  for additional management plan and species audit,14/10/2020,0000459421,250.00,Revenue,LANCS WILDLIFE TRUST,00027009
South Ribble Council,http://statistics.data.gov.uk/doc/local-authority/30UN,Property Services,Professional Fees,4510,Work: Volunteer management at Preston Junction Local Nature Reserve Amount: 6000 as per NAME REDACTED,23/10/2020,0000459484,"1,250.00",Revenue,LANCS WILDLIFE TRUST,00027009
South Ribble Council,http://statistics.data.gov.uk/doc/local-authority/30UN,Area 3 - Parks/Leyland East West,Grounds Maint Cntrctrs Chgs,4657,1x Riddle 3-5 mm BDR,02/10/2020,0000458922,13.29,Revenue,LBS WORLDWIDE LTD,00026327
South Ribble Council,http://statistics.data.gov.uk/doc/local-authority/30UN,Area 3 - Parks/Leyland East West,Grounds Maint Cntrctrs Chgs,4657,2x 8k Chicken Pellets @ 8.25,02/10/2020,0000458922,16.50,Revenue,LBS WORLDWIDE LTD,00026327
South Ribble Council,http://statistics.data.gov.uk/doc/local-authority/30UN,Area 3 - Parks/Leyland East West,Grounds Maint Cntrctrs Chgs,4657,1x 4ft canes (250pk),02/10/2020,0000458922,39.31,Revenue,LBS WORLDWIDE LTD,00026327
South Ribble Council,http://statistics.data.gov.uk/doc/local-authority/30UN,Area 3 - Parks/Leyland East West,Grounds Maint Cntrctrs Chgs,4657,2x 6ft canes (150pk),02/10/2020,0000458922,68.70,Revenue,LBS WORLDWIDE LTD,00026327
South Ribble Council,http://statistics.data.gov.uk/doc/local-authority/30UN,Area 3 - Parks/Leyland East West,Grounds Maint Cntrctrs Chgs,4657,2x Chicken Wire FWN035 600mm x 50m x 2 (43.63 each),02/10/2020,0000458922,87.26,Revenue,LBS WORLDWIDE LTD,00026327
South Ribble Council,http://statistics.data.gov.uk/doc/local-authority/30UN,Area 3 - Parks/Leyland East West,Grounds Maint Cntrctrs Chgs,4657,52 Peat Free Compost (75ltrs) @ 8.51,02/10/2020,0000458922,382.95,Revenue,LBS WORLDWIDE LTD,00026327
South Ribble Council,http://statistics.data.gov.uk/doc/local-authority/30UN,Shared Financial Services,Salaries- Car Allowances,1131,YR68 CVT (NAME REDACTED),16/10/2020,0000459507,"3,239.69",Revenue,LeasePlan UK Ltd T/A Automotive Leasing,133131
South Ribble Council,http://statistics.data.gov.uk/doc/local-authority/30UN,Shared Financial Services,Salaries- Car Allowances,1131,vat,16/10/2020,0000459507,295.64,Revenue,LeasePlan UK Ltd T/A Automotive Leasing,133131
South Ribble Council,http://statistics.data.gov.uk/doc/local-authority/30UN,Shared Financial Services,Balance Sheet,0001,- vat,16/10/2020,0000459507,-295.64,Revenue,LeasePlan UK Ltd T/A Automotive Leasing,133131
South Ribble Council,http://statistics.data.gov.uk/doc/local-authority/30UN,Housing,Cap Grant- Improve Grants,C570,DFG WORKS FOR LEVEL ACCESS BATHROOM AT ADDRESS REDACTED . New progress property so 50%  to be paid via grant is 3254.96,14/10/2020,0000459479,"3,254.96",Revenue,MAHONEY CONTRACTORS LTD,131271
South Ribble Council,http://statistics.data.gov.uk/doc/local-authority/30UN,Housing,Cap Grant- Improve Grants,C570,DFG WORKS FOR LEVEL ACCESS BATHROOM AT ADDRESS REDACTED. New progress property so 50%  to be paid via grant is 3195.97,14/10/2020,0000459480,"3,195.97",Revenue,MAHONEY CONTRACTORS LTD,131271
South Ribble Council,http://statistics.data.gov.uk/doc/local-authority/30UN,Housing,Cap Grant- Improve Grants,C570,DFG WORKS FOR LEVEL ACCESS BATHROOM AT ADDRESS REDACTED. New progress property so 50%  to be paid via grant is 3050.83,14/10/2020,0000459481,"3,050.83",Revenue,MAHONEY CONTRACTORS LTD,131271
South Ribble Council,http://statistics.data.gov.uk/doc/local-authority/30UN,Property Services,Other Misc,4851,Please supply as per NAME REDACTED request Medifogg C20  Bundle deal with 12 bottles of High Level disinfectant,14/10/2020,0000459478,635.00,Revenue,MediFogg,133201
South Ribble Council,http://statistics.data.gov.uk/doc/local-authority/30UN,Property Services,Other Misc,4851,DELIVERY,14/10/2020,0000459478,9.99,Revenue,MediFogg,133201
South Ribble Council,http://statistics.data.gov.uk/doc/local-authority/30UN,Property Services,Rep & Maint Premises,2020,Carry out work as per quote 1034 Roof Repair Leyland Market Access roof with cherry picker. Apply liquid plastics to roof lights where leaking,14/10/2020,0000459477,"1,400.00",Revenue,Mick Bamber,132873
South Ribble Council,http://statistics.data.gov.uk/doc/local-authority/30UN,Property Services,Capital Expenditure,C230,"Works to Civic Centre as per NAME REDACTED UPVC Primer, Liquid Plastics with matting to gutters,  non-slip Liquid Plastics to walk way",16/10/2020,0000459562,"1,500.00",Revenue,Mick Bamber,132873
South Ribble Council,http://statistics.data.gov.uk/doc/local-authority/30UN,Property Services,Rep & Maint Premises,2020,"Work at Leyland Leisure Centre:- Power wash damaged areas, apply liquid plastics and reinforcements of approx 15 metres as per estimate 1076",23/10/2020,0000459618,"1,000.00",Revenue,Mick Bamber,132873
South Ribble Council,http://statistics.data.gov.uk/doc/local-authority/30UN,Property Services,Rep & Maint Premises,2020,"Works as per NAME REDACTED and ESTIMATE NO. 1063 ADDRESS REDACTED Apply one layer mineral felt to roof, edge trims, wall flashings",23/10/2020,0000459635,"1,400.00",Revenue,Mick Bamber,132873
South Ribble Council,http://statistics.data.gov.uk/doc/local-authority/30UN,Property Services,Rep & Maint Premises,2020,"Works as per NAME REDACTED Moss Side Depot Garage no 3  Erect scaffolding to rear and gables, under each skylight, Remove all fixings to",23/10/2020,0000459636,"4,800.00",Revenue,Mick Bamber,132873
South Ribble Council,http://statistics.data.gov.uk/doc/local-authority/30UN,Property Services,Rep & Maint Premises,2020,"Works as per NAME REDACTED Roof repair ADDRESS REDACTED, Erect Scaffolding, Apply new wall flashings, Repair damaged sheets",23/10/2020,0000459637,"1,500.00",Revenue,Mick Bamber,132873
South Ribble Council,http://statistics.data.gov.uk/doc/local-authority/30UN,Property Services,Rep & Maint Premises,2020,Worden Park Caf� Rebed and repoint ridges - following damage to roof during windy weather as per NAME REDACTED,23/10/2020,0000459638,600.00,Revenue,Mick Bamber,132873
South Ribble Council,http://statistics.data.gov.uk/doc/local-authority/30UN,Property Services,Rep & Maint Premises,2020,"Unit 124 Clydesdale Place moss side Remove all skylights,reseal joints and re-fix skylights, clean all moss from rear of roof and gutters
",23/10/2020,0000459639,"1,100.00",Revenue,Mick Bamber,132873
South Ribble Council,http://statistics.data.gov.uk/doc/local-authority/30UN,Area 1 - Penwortham Western Parishes,Professional Fees,4521,Provision of stray dogs service. September 2020.,16/10/2020,0000459535,379.46,Revenue,MORNINGSIDE KENNELS,00067755
South Ribble Council,http://statistics.data.gov.uk/doc/local-authority/30UN,Area 1 - Penwortham Western Parishes,Professional Fees,4521,Provision of stay dogs service. August 2020,16/10/2020,0000459536,419.62,Revenue,MORNINGSIDE KENNELS,00067755
South Ribble Council,http://statistics.data.gov.uk/doc/local-authority/30UN,Area 1 - Penwortham Western Parishes,Professional Fees,4521,Provision of stray dogs service. May 2020,16/10/2020,0000459537,347.18,Revenue,MORNINGSIDE KENNELS,00067755
South Ribble Council,http://statistics.data.gov.uk/doc/local-authority/30UN,Area 1 - Penwortham Western Parishes,Professional Fees,4521,PROVISION OF STRAY DOG SERVICE APRIL 2020,16/10/2020,0000459538,377.40,Revenue,MORNINGSIDE KENNELS,00067755
South Ribble Council,http://statistics.data.gov.uk/doc/local-authority/30UN,Environmental Health,Licence Fees,488B,fee oct to dec,21/10/2020,0000459512,"1,375.00",Revenue,MOSS SIDE COMMUNITY FORUM,00098724
South Ribble Council,http://statistics.data.gov.uk/doc/local-authority/30UN,Information Services,Peripherals,4241,"5 Toshiba laptops @ 404.00, plus delivery 10.00, as per quote 189944",02/10/2020,0000459226,"2,030.00",Revenue,MYPREMIER LTD,130091
South Ribble Council,http://statistics.data.gov.uk/doc/local-authority/30UN,Area 2 - Waste Transport/Eastern & Central Teams,External Contractors Charges,4570,Service Wash VK20 NVV 3.9.20 - JFC15469,14/10/2020,0000459412,65.00,Revenue,NAYLORS TRANSPORT (LEYLAND) ltd,00114828
South Ribble Council,http://statistics.data.gov.uk/doc/local-authority/30UN,Area 2 - Waste Transport/Eastern & Central Teams,External Contractors Charges,4570,MOT Wash VO65 KPX 10.9.20 - JFC15304,14/10/2020,0000459412,75.00,Revenue,NAYLORS TRANSPORT (LEYLAND) ltd,00114828
South Ribble Council,http://statistics.data.gov.uk/doc/local-authority/30UN,Area 2 - Waste Transport/Eastern & Central Teams,External Contractors Charges,4570,Service Wash PJ62 UCG 14.9.20 - JFC15470,14/10/2020,0000459412,65.00,Revenue,NAYLORS TRANSPORT (LEYLAND) ltd,00114828
South Ribble Council,http://statistics.data.gov.uk/doc/local-authority/30UN,Area 2 - Waste Transport/Eastern & Central Teams,External Contractors Charges,4570,Service Wash PO20 ZRX 28.9.20 - JFC15471,14/10/2020,0000459412,65.00,Revenue,NAYLORS TRANSPORT (LEYLAND) ltd,00114828
South Ribble Council,http://statistics.data.gov.uk/doc/local-authority/30UN,Area 2 - Waste Transport/Eastern & Central Teams,External Contractors Charges,4570,Service Wash PF18 JOV 29.9.20 - JFC15472,14/10/2020,0000459412,65.00,Revenue,NAYLORS TRANSPORT (LEYLAND) ltd,00114828
South Ribble Council,http://statistics.data.gov.uk/doc/local-authority/30UN,Area 2 - Waste Transport/Eastern & Central Teams,External Contractors Charges,4570,Service Wash MX04 YNL 1.10.20 - JFC15473,14/10/2020,0000459412,65.00,Revenue,NAYLORS TRANSPORT (LEYLAND) ltd,00114828
South Ribble Council,http://statistics.data.gov.uk/doc/local-authority/30UN,Environmental Health,Operational Furniture & Equip,4010,"3 X BOXES COMPOSITE LABELS, 200 X INTERNAL PLATES 2 SIDED, 100 X MOGO INTERNAL PLATES 2 SIDED 240 X CLEAR PLATES ",02/10/2020,0000459273,"2,368.30",Revenue,NEWAUTO LTD T/A MOGO (UK),00081566
South Ribble Council,http://statistics.data.gov.uk/doc/local-authority/30UN,Development Enterprise & Comm Mgnt,Other Misc,485K,Print-Magazines NW Display Ads Half page vertical (agenda only) Jul20 Regional 1 No Preference ref 0000110635 as per NAME REDACTED,21/10/2020,0000457368,980.00,Revenue,NEWSCO INSIDER LTD,00011620
South Ribble Council,http://statistics.data.gov.uk/doc/local-authority/30UN,Planning,Consultancy Fees,4541,Review and provide advice on a retail report relating to planning application 07/2020/00365/FUL - Land between The Cawsey and Lyme Road,09/10/2020,0000459358,"1,750.00",Revenue,Nexus Planning,133187
South Ribble Council,http://statistics.data.gov.uk/doc/local-authority/30UN,Area 1 - Penwortham Western Parishes,Professional Fees,4514,Deployment of officers August 2020,02/10/2020,0000458868,"1,595.65",Revenue,NSL LTD,00116868
South Ribble Council,http://statistics.data.gov.uk/doc/local-authority/30UN,Area 1 - Penwortham Western Parishes,Other Misc,4855,Cash collection and Ringo charges - August 2020,02/10/2020,0000458868,462.91,Revenue,NSL LTD,00116868
South Ribble Council,http://statistics.data.gov.uk/doc/local-authority/30UN,Area 1 - Penwortham Western Parishes,Other Misc,4855,Ringo convenience charge- August 2020,02/10/2020,0000458868,194.89,Revenue,NSL LTD,00116868
South Ribble Council,http://statistics.data.gov.uk/doc/local-authority/30UN,Area 1 - Penwortham Western Parishes,Professional Fees,4526,PRICE PER CONTRACTED ITEMISED COLLECTION,02/10/2020,0000458868,81.24,Revenue,NSL LTD,00116868
South Ribble Council,http://statistics.data.gov.uk/doc/local-authority/30UN,Area 1 - Penwortham Western Parishes,Professional Fees,4514,Deployment of officers September 2020,14/10/2020,0000459384,"1,618.94",Revenue,NSL LTD,00116868
South Ribble Council,http://statistics.data.gov.uk/doc/local-authority/30UN,Area 1 - Penwortham Western Parishes,Other Misc,4855,Cash Collection and Ringo Charges - September 2020,14/10/2020,0000459384,659.88,Revenue,NSL LTD,00116868
South Ribble Council,http://statistics.data.gov.uk/doc/local-authority/30UN,Area 1 - Penwortham Western Parishes,Other Misc,4855,Ringo Convenience charges- September 2020,14/10/2020,0000459384,230.64,Revenue,NSL LTD,00116868
South Ribble Council,http://statistics.data.gov.uk/doc/local-authority/30UN,Area 1 - Penwortham Western Parishes,Professional Fees,4526,PRICE PER CONTRACTED ITEMISED COLLECTION,14/10/2020,0000459384,40.62,Revenue,NSL LTD,00116868
South Ribble Council,http://statistics.data.gov.uk/doc/local-authority/30UN,Property Services,Clothing- Uniforms & Laundry,4410,Please supply 3 x waterproof jackets and 1 pair of boots to the facilities officer of South Ribble Borough Council,14/10/2020,0000459475,324.88,Revenue,OUTDOOR ACTION LTD,130008
South Ribble Council,http://statistics.data.gov.uk/doc/local-authority/30UN,Healthy Communities,Cleaning and Domestic Supplies,2711,BA030-75 - JANGRO GLASS & MIRROR CLEANER 750ML,02/10/2020,0000458414,15.72,Revenue,Pattersons (Bristol) Ltd,132621
South Ribble Council,http://statistics.data.gov.uk/doc/local-authority/30UN,Healthy Communities,Cleaning and Domestic Supplies,2711,AA201 - JANGRO MICRO MINI TOILET ROLL 100M X 90MM (24),02/10/2020,0000458414,105.90,Revenue,Pattersons (Bristol) Ltd,132621
South Ribble Council,http://statistics.data.gov.uk/doc/local-authority/30UN,Healthy Communities,Cleaning and Domestic Supplies,2711,AE234 - TORK S-FOLD HAND TOWEL 1PLY BLUE (4000SHT),02/10/2020,0000458414,132.50,Revenue,Pattersons (Bristol) Ltd,132621
South Ribble Council,http://statistics.data.gov.uk/doc/local-authority/30UN,Healthy Communities,Cleaning and Domestic Supplies,2711,BC045-1 - JANGRO TOILET & WASHROOM CLEANER DESCALER  1 LTR,02/10/2020,0000458414,37.60,Revenue,Pattersons (Bristol) Ltd,132621
South Ribble Council,http://statistics.data.gov.uk/doc/local-authority/30UN,Healthy Communities,Cleaning and Domestic Supplies,2711,BG040-FL - JANRO AIR FRESHENER AEROSOL FRESH LINEN 400ML,02/10/2020,0000458414,6.02,Revenue,Pattersons (Bristol) Ltd,132621
South Ribble Council,http://statistics.data.gov.uk/doc/local-authority/30UN,Healthy Communities,Cleaning and Domestic Supplies,2711,BB034-5 - JANGRO CONCENTRATED GREEN DETERGENT 20% 5LTR,02/10/2020,0000458414,19.80,Revenue,Pattersons (Bristol) Ltd,132621
South Ribble Council,http://statistics.data.gov.uk/doc/local-authority/30UN,Healthy Communities,Cleaning and Domestic Supplies,2711,JG412630 - GLADE PACIFIC BREEZE AIR FRESHENER 500ml,02/10/2020,0000458414,11.40,Revenue,Pattersons (Bristol) Ltd,132621
South Ribble Council,http://statistics.data.gov.uk/doc/local-authority/30UN,Healthy Communities,Cleaning and Domestic Supplies,2711,AF113 - JANGRO CENTREFEED 2PLY 20CM 150MTR BLUE (6),02/10/2020,0000458414,29.48,Revenue,Pattersons (Bristol) Ltd,132621
South Ribble Council,http://statistics.data.gov.uk/doc/local-authority/30UN,Property Services,Other Misc,4851,Please supply  30 boxes of masks Code TEMP015- 14.71 each Total amount 441.30,23/10/2020,0000459565,441.30,Revenue,Pattersons (Bristol) Ltd,132621
South Ribble Council,http://statistics.data.gov.uk/doc/local-authority/30UN,Information Services,Peripherals,4243,10 x 01367320  LK6-00004  Phone System Shared Server All Language Subscription Licence Per User - Licence  as per quote 01180999,02/10/2020,0000459224,324.70,Revenue,PHOENIX SOFTWARE LTD,00064279
South Ribble Council,http://statistics.data.gov.uk/doc/local-authority/30UN,Information Services,Stationery,4133,"50,000 sheets Evolution Everyday A4 80gm 2500 sheets Evolution Everyday A3",14/10/2020,0000459385,319.28,Revenue,PREMIER PAPER GROUP LTD,00022606
South Ribble Council,http://statistics.data.gov.uk/doc/local-authority/30UN,Regeneration,Contributions,4730,"Grant 2020-21 as per Grant Agreement Instalment 1 - 7,500 Instalment 2 - 7,500",02/10/2020,0000459258,"7,500.00",Revenue,Preston Community Transport,131863
South Ribble Council,http://statistics.data.gov.uk/doc/local-authority/30UN,Democratic Services,Printing,4127,PRINTING OF STAGE 2 CANVASS COMMUNICATIONS AND ENVELOPES (IN LINE WITH C ON ACK) JOB REF 7244,16/10/2020,0000459528,891.29,Revenue,PRINT IMAGE NETWORK LTD,00089199
South Ribble Council,http://statistics.data.gov.uk/doc/local-authority/30UN,Property Services,Rep & Maint Premises,2020,Please attend Worden Park works yard behind walled garden and do the work as per quote LRS Q 2804 for NAME REDACTED,14/10/2020,0000459468,"2,000.00",Revenue,PSR & Sons Joiners & Building Contractors,132887
South Ribble Council,http://statistics.data.gov.uk/doc/local-authority/30UN,Property Services,Rep & Maint Premises,2020,LABOUR,14/10/2020,0000459468,760.00,Revenue,PSR & Sons Joiners & Building Contractors,132887
South Ribble Council,http://statistics.data.gov.uk/doc/local-authority/30UN,Property Services,Rep & Maint Premises,2020,extra work labour,14/10/2020,0000459468,245.00,Revenue,PSR & Sons Joiners & Building Contractors,132887
South Ribble Council,http://statistics.data.gov.uk/doc/local-authority/30UN,Property Services,Rep & Maint Premises,2020,To carry out window and door inspections from list of buildings provided. Visually check the doors and windows are working,23/10/2020,0000459469,970.00,Revenue,PSR & Sons Joiners & Building Contractors,132887
South Ribble Council,http://statistics.data.gov.uk/doc/local-authority/30UN,Property Services,Rep & Maint Premises,2020,MATERIALS,23/10/2020,0000459469,200.00,Revenue,PSR & Sons Joiners & Building Contractors,132887
South Ribble Council,http://statistics.data.gov.uk/doc/local-authority/30UN,Property Services,Repair Costs,4052,Please carry out works as per quote LRS Q 2908 dated 29th January 2020 at ADDRESS REDACTED. As per NAME REDACTED,14/10/2020,0000459470,900.00,Revenue,PSR & Sons Joiners & Building Contractors,132887
South Ribble Council,http://statistics.data.gov.uk/doc/local-authority/30UN,Property Services,Repair Costs,4052,LABOUR,14/10/2020,0000459470,130.00,Revenue,PSR & Sons Joiners & Building Contractors,132887
South Ribble Council,http://statistics.data.gov.uk/doc/local-authority/30UN,Property Services,Rep & Maint Premises,2020,Please attend Worden Park and carry out boarding up of windows as requested by NAMES REDACTED,14/10/2020,0000459471,"1,200.00",Revenue,PSR & Sons Joiners & Building Contractors,132887
South Ribble Council,http://statistics.data.gov.uk/doc/local-authority/30UN,Property Services,Rep & Maint Premises,2020,LABOUR,14/10/2020,0000459471,120.00,Revenue,PSR & Sons Joiners & Building Contractors,132887
South Ribble Council,http://statistics.data.gov.uk/doc/local-authority/30UN,Regeneration,Capital Expenditure,C230,Please undertake the ``Worden hall refurbishment project part to RIBA stage 3``,09/10/2020,0000459221,"19,991.25",Revenue,Purcell Architecture Limited,132602
South Ribble Council,http://statistics.data.gov.uk/doc/local-authority/30UN,Area 3 - Parks/Leyland East West,Contract Hire & Lease Costs,3212,Hire of 1 x 3 ton excavator from Tuesday 1st September 2020 for two weeks. To be delivered to Worden Park on 01/09/2020 at 08:30am,23/10/2020,0000459417,490.00,Revenue,Readyplant Limited,131535
South Ribble Council,http://statistics.data.gov.uk/doc/local-authority/30UN,Area 3 - Parks/Leyland East West,Contract Hire & Lease Costs,3212,Hire of 1 x 3 ton excavator from Tuesday 15th September 2020 for two weeks,23/10/2020,0000459417,490.00,Revenue,Readyplant Limited,131535
South Ribble Council,http://statistics.data.gov.uk/doc/local-authority/30UN,Property Services,Rep & Maint Premises,2020,"Please re-set the dangerous curbstones outside unit 18a Boxer Place, Leyland",07/10/2020,0000459322,100.00,Revenue,RED ROSE BUILDING MAINTENANCE,00085410
South Ribble Council,http://statistics.data.gov.uk/doc/local-authority/30UN,Property Services,Rep & Maint Premises,2020,Labour,07/10/2020,0000459322,150.00,Revenue,RED ROSE BUILDING MAINTENANCE,00085410
South Ribble Council,http://statistics.data.gov.uk/doc/local-authority/30UN,Property Services,Rep & Maint Premises,2020,Please attend Cross Road toilets and unblock/jet to clear the further blockage again on 6th October  as reported by NAME REDACTED ,23/10/2020,0000459632,350.00,Revenue,RED ROSE BUILDING MAINTENANCE,00085410
South Ribble Council,http://statistics.data.gov.uk/doc/local-authority/30UN,Homelessness,Contractors Charges 5,5311,OSM Oct -Dec,14/10/2020,0000459034,"5,624.90",Revenue,REDDY & CO,00108177
South Ribble Council,http://statistics.data.gov.uk/doc/local-authority/30UN,Area 2 - Waste Transport/Eastern & Central Teams,External Contractors Charges,4570,Spec Repair PJ62 UCM JFC15005,09/10/2020,0000459215,"2,570.00",Revenue,RTS Muni,132454
South Ribble Council,http://statistics.data.gov.uk/doc/local-authority/30UN,Development Enterprise & Comm Mgnt,Consultancy Fees,4536,R & M for 2020/2021,09/10/2020,0000459320,"14,801.50",Revenue,SERCO LEISURE (OP) LTD,00094906
South Ribble Council,http://statistics.data.gov.uk/doc/local-authority/30UN,Information Services,Professional Fees,4520,Shredding of Confidential Waste 2020/21,09/10/2020,0000459033,481.78,Revenue,SHRED-IT LTD,00109134
South Ribble Council,http://statistics.data.gov.uk/doc/local-authority/30UN,Area 3 - Parks/Leyland East West,Grounds Maint Cntrctrs Chgs,4657,POWER HARROW AND SEED UP TO FENCE - WORDEN PARK PLAY AREA,09/10/2020,0000459319,400.00,Revenue,Singleton Landwork Ltd,131959
South Ribble Council,http://statistics.data.gov.uk/doc/local-authority/30UN,Area 3 - Parks/Leyland East West,Grounds Maint Cntrctrs Chgs,4657,LOAD AND TRANSPRORT TOPSOIL FROM NEAR COMPOUND TO PLAY AREA - TRACTOR TRAILER + DRIVER,09/10/2020,0000459319,120.00,Revenue,Singleton Landwork Ltd,131959
South Ribble Council,http://statistics.data.gov.uk/doc/local-authority/30UN,Area 3 - Parks/Leyland East West,Grounds Maint Cntrctrs Chgs,4657,EXCAVATOR AND OPERATOR,09/10/2020,0000459319,120.00,Revenue,Singleton Landwork Ltd,131959
South Ribble Council,http://statistics.data.gov.uk/doc/local-authority/30UN,Homelessness,Contractors Charges 5,5311,SRBC placements 4 rooms as agreed 16/8/20 - 22/8/20  1400 6/9/20 - 12/9/20  1400 13/9/20 - 19/9/20  1400,14/10/2020,0000459218,"1,400.00",Revenue,SMITHY LODGE GUEST HOUSE,130562
South Ribble Council,http://statistics.data.gov.uk/doc/local-authority/30UN,Homelessness,Contractors Charges 5,5311,SRBC placements 4 rooms as agreed 16/8/20 - 22/8/20  1400 6/9/20 - 12/9/20  1400 13/9/20 - 19/9/20  1400,14/10/2020,0000459219,"1,400.00",Revenue,SMITHY LODGE GUEST HOUSE,130562
South Ribble Council,http://statistics.data.gov.uk/doc/local-authority/30UN,Homelessness,Contractors Charges 5,5311,SRBC placements 4 rooms as agreed 16/8/20 - 22/8/20  1400 6/9/20 - 12/9/20  1400 13/9/20 - 19/9/20  1400,14/10/2020,0000459220,"1,400.00",Revenue,SMITHY LODGE GUEST HOUSE,130562
South Ribble Council,http://statistics.data.gov.uk/doc/local-authority/30UN,Development Enterprise & Comm Mgnt,Consultancy Fees,4532,Leisure Services Fee 2020/2021,21/10/2020,0000459294,"24,780.09",Revenue,SOUTH RIBBLE COMMUNITY LEISURE LTD,00094210
South Ribble Council,http://statistics.data.gov.uk/doc/local-authority/30UN,Property Services,Other Grants and Subscriptions,4741,Annual Professional Support Grant 2020 - 2021 - requested by NAME REDACTED,21/10/2020,0000459454,"23,572.70",Revenue,SOUTH RIBBLE COMMUNITY LEISURE LTD,00095002
South Ribble Council,http://statistics.data.gov.uk/doc/local-authority/30UN,Shared Financial Services,Balance Sheet,0030,Yearly deductions from Payroll,16/10/2020,0000459395,"3,000.00",Revenue,SOUTH RIBBLE CONSERVATIVE FUND,00119483
South Ribble Council,http://statistics.data.gov.uk/doc/local-authority/30UN,Shared Financial Services,Balance Sheet,0030,Monthly Deductions from Payroll,16/10/2020,0000459397,"1,935.67",Revenue,SOUTH RIBBLE LABOUR PARTY LOCAL GOVERNM,00120663
South Ribble Council,http://statistics.data.gov.uk/doc/local-authority/30UN,Shared Financial Services,Balance Sheet,0030,Monthly Deductions from Payroll,16/10/2020,0000459393,420.98,Revenue,ST CATHERINES HOSPICE PROMOTIONS LTD,00057749
South Ribble Council,http://statistics.data.gov.uk/doc/local-authority/30UN,Neighbourhood Admin & Support,Vehicle Running Costs,3134,2500 litres gas oil @ 41.03ppl into tank 2,02/10/2020,0000459266,950.87,Revenue,Standard Fuel Oils LtdMain,131556
South Ribble Council,http://statistics.data.gov.uk/doc/local-authority/30UN,Neighbourhood Admin & Support,Vehicle Running Costs,3132,17000 litres diesel @ 86.54 ppl into the feeder tank at Unit 81 Bison Place Moss Side- key for cabinet available from main office TEL REDACTED,02/10/2020,0000459282,"14,797.84",Revenue,Standard Fuel Oils LtdMain,131556
South Ribble Council,http://statistics.data.gov.uk/doc/local-authority/30UN,Neighbourhood Admin & Support,Vehicle Running Costs,3132,17000 litres diesel @ 86.32ppl into the feeder tank at Unit 81 Bison Place Moss Side- Key for cabinet available from main office TEL REDACTED,23/10/2020,0000459371,"14,662.32",Revenue,Standard Fuel Oils LtdMain,131556
South Ribble Council,http://statistics.data.gov.uk/doc/local-authority/30UN,Property Services,Rents,2401,"Rental fees from September 2020 until 31st March 2021 for Forward industrial estate, Talbot Road, Leyland PR25 2ZJ. Property Ref 2710/081",09/10/2020,0000459030,"13,772.50",Revenue,STONEWELL PROPERTY COMPANY LTD (In Administration),00118138
South Ribble Council,http://statistics.data.gov.uk/doc/local-authority/30UN,Development Enterprise & Comm Mgnt,Training Expense-Course Fees,1403,"Please supply as per NAME REDACTED request Registration cost, Use of Portal, IWFM assessment charge, Tuition Cost Total Cost 970  +VAT",14/10/2020,0000459530,970.00,Revenue,TAGadvance Ltd,133170
South Ribble Council,http://statistics.data.gov.uk/doc/local-authority/30UN,Development Enterprise & Comm Mgnt,Training Expense-Course Fees,1403,Please supply the following Apprenticeship training co-investment for NAMES REDACTED as per NAME REDACTED Initial invoice is 240,14/10/2020,0000459531,270.00,Revenue,TAGadvance Ltd,133170
South Ribble Council,http://statistics.data.gov.uk/doc/local-authority/30UN,Area 2 - Waste Transport/Eastern & Central Teams,Materials General,4040,PRICE HIKE FOR 2 x bin clamp cylinders VU60HLE JFC15264,14/10/2020,0000459025,538.65,Revenue,Taylor Enginering & Fabrications Ltd,132560
South Ribble Council,http://statistics.data.gov.uk/doc/local-authority/30UN,Area 2 - Waste Transport/Eastern & Central Teams,Materials General,4040,7 x Rose bearings- BIN383,02/10/2020,0000459216,73.50,Revenue,Taylor Enginering & Fabrications Ltd,132560
South Ribble Council,http://statistics.data.gov.uk/doc/local-authority/30UN,Area 2 - Waste Transport/Eastern & Central Teams,Materials General,4040,1 x safety arm VU60HLE JFC15264,02/10/2020,0000459216,75.00,Revenue,Taylor Enginering & Fabrications Ltd,132560
South Ribble Council,http://statistics.data.gov.uk/doc/local-authority/30UN,Area 2 - Waste Transport/Eastern & Central Teams,Materials General,4040,2 x stabilizer pins 4 x stabilizer spacers 2 x stabilizer boss 2 x stabilizer pin nuts VO65KRE JFC15391,02/10/2020,0000459216,238.72,Revenue,Taylor Enginering & Fabrications Ltd,132560
South Ribble Council,http://statistics.data.gov.uk/doc/local-authority/30UN,Area 2 - Waste Transport/Eastern & Central Teams,Materials General,4040,CARRIAGE,02/10/2020,0000459216,12.50,Revenue,Taylor Enginering & Fabrications Ltd,132560
South Ribble Council,http://statistics.data.gov.uk/doc/local-authority/30UN,Property Services,Professional Fees,4510,Work: Environmental project support and development: annual management of tree and bee hives Amount: 1350 as per NAME REDACTED,14/10/2020,0000459434,450.00,Revenue,The Bee centre,132104
South Ribble Council,http://statistics.data.gov.uk/doc/local-authority/30UN,Property Services,Professional Fees,4510,Work: Environmental project support and development: annual management of tree and bee hives Amount: 1350 as per NAME REDACTED,23/10/2020,0000459623,450.00,Revenue,The Bee centre,132104
South Ribble Council,http://statistics.data.gov.uk/doc/local-authority/30UN,Neighbourhood Admin & Support,Operational Furniture & Equip,4010,40 x litter pickers ranger max (LP3035-35``) at 16.61 each,09/10/2020,0000459354,664.40,Revenue,The Helping Hand Company,132811
South Ribble Council,http://statistics.data.gov.uk/doc/local-authority/30UN,HR & Communications,Payroll Suspense,1741,7 PRACTICING CERTIFICATES FOR 2020/2021 FOR: 7x NAMES REDACTED,16/10/2020,0000459534,"2,296.00",Revenue,THE LAW SOCIETY,130665
South Ribble Council,http://statistics.data.gov.uk/doc/local-authority/30UN,Information Services,Publications,4142,schofields R54,14/10/2020,0000459402,132.50,Revenue,THOMSON REUTERS,00034979
South Ribble Council,http://statistics.data.gov.uk/doc/local-authority/30UN,Information Services,Publications,4142,non vat,14/10/2020,0000459402,132.50,Revenue,THOMSON REUTERS,00034979
South Ribble Council,http://statistics.data.gov.uk/doc/local-authority/30UN,Area 2 - Waste Transport/Eastern & Central Teams,Materials General,4040,4 tyres MV12 SWN JFC15329,21/10/2020,0000459366,247.80,Revenue,Tomlinson Road Tyres,132876
South Ribble Council,http://statistics.data.gov.uk/doc/local-authority/30UN,Area 2 - Waste Transport/Eastern & Central Teams,External Contractors Charges,4570,"2x tyres, PE16 OUA, JFC15340 (NAME REDACTED)",21/10/2020,0000459366,99.90,Revenue,Tomlinson Road Tyres,132876
South Ribble Council,http://statistics.data.gov.uk/doc/local-authority/30UN,Area 2 - Waste Transport/Eastern & Central Teams,Materials General,4040,2 rear tyres @ 79.95 each + VAT YJ19 DHA JFC15359,21/10/2020,0000459366,159.90,Revenue,Tomlinson Road Tyres,132876
South Ribble Council,http://statistics.data.gov.uk/doc/local-authority/30UN,Healthy Communities,Materials General,4040,Scoot Safe booklet x1000  =385.00 + VAT Scoot Safe certificates x1000  =98.00 + VAT =483.00 + VAT,14/10/2020,0000459424,483.00,Revenue,TOWNSEND PRINT SERVICES LTD,00037170
South Ribble Council,http://statistics.data.gov.uk/doc/local-authority/30UN,Property Services,Rep & Maint Premises,2020,"To supply & fit 1 x 10kw 1 way under ceiling air conditioning unit to 18C Boxer Place, Leyland as per quotation dated 15th September 2020",14/10/2020,0000459448,"4,290.00",Revenue,UNIVERSAL COOLING LTD,130914
South Ribble Council,http://statistics.data.gov.uk/doc/local-authority/30UN,Property Services,Rep & Maint Premises,2020,"To supply & fit 1 x 10kw 1 way under ceiling air conditioning unit to 15C Boxer Place, Leyland as per quotation dated 15th September 2020",14/10/2020,0000459448,"4,290.00",Revenue,UNIVERSAL COOLING LTD,130914
South Ribble Council,http://statistics.data.gov.uk/doc/local-authority/30UN,Property Services,Rep & Maint Premises,2020,"2020 / 2021 annual contract for quarterly servicing of all No water coolers located at the Civic Centre, PR25 1DH  VALUE_ONLY  1820.00",07/10/2020,0000459317,130.00,Revenue,VENDING ENTERPRISES,00101501
South Ribble Council,http://statistics.data.gov.uk/doc/local-authority/30UN,Property Services,Operational Furniture & Equip,4012,2020 / 2021 annual contract for the monthly rental of hot drinks machines at the civic centre including environmental charge.,07/10/2020,0000459317,747.89,Revenue,VENDING ENTERPRISES,00101501
South Ribble Council,http://statistics.data.gov.uk/doc/local-authority/30UN,Property Services,Agency Fees,1121,Estates Surveyor consultancy fees for NAME REDACTED from 1st July 2020 for a period of 4 months 4 days per week,09/10/2020,0000459257,"1,644.93",Revenue,Vivid Resourcing,132999
South Ribble Council,http://statistics.data.gov.uk/doc/local-authority/30UN,Property Services,Agency Fees,1121,Estates Surveyor consultancy fees for NAME REDACTED from 1st July 2020 for a period of 4 months 4 days per week,14/10/2020,0000459447,"1,878.17",Revenue,Vivid Resourcing,132999
South Ribble Council,http://statistics.data.gov.uk/doc/local-authority/30UN,Property Services,Agency Fees,1121,Estates Surveyor consultancy fees for NAME REDACTED from 1st July 2020 for a period of 4 months 4 days per week,23/10/2020,0000459622,"2,033.50",Revenue,Vivid Resourcing,132999
South Ribble Council,http://statistics.data.gov.uk/doc/local-authority/30UN,Information Services,Peripherals,4269,25 Sept 2020,14/10/2020,0000459401,"3,196.83",Revenue,VODAFONE RE:CABLE & WIRELESS UK,130810
South Ribble Council,http://statistics.data.gov.uk/doc/local-authority/30UN,Information Services,Peripherals,4247,1 Oct 2020,14/10/2020,0000459446,"2,404.20",Revenue,VODAFONE RE:CABLE & WIRELESS UK,130810
South Ribble Council,http://statistics.data.gov.uk/doc/local-authority/30UN,Information Services,Peripherals,4247,19th Oct 2020,23/10/2020,0000459644,"2,252.86",Revenue,VODAFONE RE:CABLE & WIRELESS UK,130810
South Ribble Council,http://statistics.data.gov.uk/doc/local-authority/30UN,Area 3 - Parks/Leyland East West,Materials General,4046,SUMMER BEDDING PLANTS AS PER ATTACHED LIST,16/10/2020,0000459459,"3,767.22",Revenue,Walkers Oakfield Nurseries,131380
South Ribble Council,http://statistics.data.gov.uk/doc/local-authority/30UN,Revenues Plus,Postage,4291,Revenues April to September 2020,07/10/2020,0000459289,752.13,Revenue,WHISTL  UK LTD,131310
South Ribble Council,http://statistics.data.gov.uk/doc/local-authority/30UN,Information Services,Peripherals,4247,Broadband Services and call barring 11/09/20 - 10/09/21,14/10/2020,0000459422,371.88,Revenue,Zen Internet,132851
